fUSD/lending_fUSD_20240121
["ID","MTS","AMOUNT","RATE_DAILY","PERIOD"]
[312432820,1705871477132,-500.0,0.00042191,31]
[312432821,1705871477142,-500.0,0.00042191,31]
[312432822,1705871477151,-500.0,0.00042191,31]
[312432823,1705871477161,-500.0,0.00042191,31]
[312432824,1705871477171,-856.17,0.00042191,31]
[312432825,1705871477181,-500.0,0.00042191,31]
[312432826,1705871477192,-536.7940126,0.00042191,31]
[312432827,1705871477202,-849.1,0.00042191,31]
[312432828,1705871477212,-1513.82,0.00042191,7]
[312432829,1705871477222,-500.0,0.00042191,31]
[312432830,1705871477231,-500.0,0.00042191,31]
[312432831,1705871477241,-500.0,0.00042191,31]
[312432832,1705871477251,-706.47,0.00042191,31]
[312432833,1705871477262,-500.0,0.00042191,31]
[312432834,1705871477271,-529.67,0.00042191,31]
[312432835,1705871477282,-500.0,0.00042191,31]
[312432836,1705871477292,-500.0,0.00042191,31]
[312432837,1705871477304,-762.54,0.00042191,31]
[312432838,1705871477314,-500.0,0.00042191,31]
[312432839,1705871477324,-500.0,0.00042191,31]
[312432840,1705871477334,-500.0,0.00042191,31]
[312432841,1705871477345,-500.0,0.00042191,31]
[312432842,1705871477354,-648.17,0.00042191,31]
[312432843,1705871477365,-500.0,0.00042191,31]
[312432844,1705871477377,-500.0,0.00042191,31]
[312432845,1705871477386,-708.7,0.00042191,31]
[312432846,1705871477396,-500.0,0.00042191,31]
[312432847,1705871477406,-748.16,0.00042191,31]
[312432848,1705871477418,-500.0,0.00042191,31]
[312432849,1705871477427,-500.0,0.00042191,31]
[312432850,1705871477438,-645.95638111,0.00042191,31]
[312432851,1705871477449,-538.15,0.00042191,31]
[312432852,1705871477460,-500.0,0.00042191,31]
[312432853,1705871477469,-653.51,0.00042191,31]
[312432854,1705871477479,-500.0,0.00042191,31]
[312432855,1705871477489,-500.0,0.00042191,31]
[312432856,1705871477501,-666.99,0.00042191,31]
[312432857,1705871477512,-514.32,0.00042191,31]
[312432858,1705871477522,-490.47021464,0.00042191,31]
[312432859,1705871477534,-500.0,0.00042191,31]
[312432860,1705871477544,-500.0,0.00042191,31]
[312432861,1705871477555,-701.1,0.00042191,31]
[312432862,1705871477565,-500.0,0.00042191,31]
[312432863,1705871477575,-500.0,0.00042191,31]
[312432864,1705871477585,-1217.32,0.00042191,31]
[312432865,1705871477597,-500.0,0.00042191,31]
[312432866,1705871477608,-500.0,0.00042191,31]
[312432867,1705871477618,-665.7,0.00042191,31]
[312432868,1705871477630,-500.0,0.00042191,31]
[312432869,1705871477640,-845.54,0.00042191,31]
[312432870,1705871477650,-719.92,0.00042191,31]
[312432871,1705871477661,-500.0,0.00042191,31]
[312432872,1705871477670,-500.0,0.00042191,31]
[312432873,1705871477679,-1035.75,0.00042191,31]
[312432874,1705871477689,-500.0,0.00042191,31]
[312432875,1705871477698,-500.0,0.00042191,31]
[312432876,1705871477708,-680.66,0.00042191,31]
[312432877,1705871477717,-503.99,0.00042191,31]
[312432878,1705871477727,-500.0,0.00042191,31]
[312432879,1705871477736,-500.0,0.00042191,31]
[312432880,1705871477746,-500.0,0.00042191,31]
[312432881,1705871477756,-788.84,0.00042191,31]
[312432882,1705871477765,-500.0,0.00042191,31]
[312432883,1705871477775,-500.0,0.00042191,31]
[312432884,1705871477785,-500.0,0.00042191,2]
[312432885,1705871477794,-500.0,0.00042191,31]
[312432886,1705871477804,-587.0,0.00042191,31]
[312432887,1705871477814,-500.0,0.00042191,31]
[312432888,1705871477823,-500.0,0.00042191,31]
[312432889,1705871477833,-528.06,0.00042191,31]
[312432890,1705871477843,-500.0,0.00042191,31]
[312432891,1705871477853,-907.43,0.00042191,31]
[312432892,1705871477862,-500.0,0.00042191,15]
[312432893,1705871477871,-500.0,0.00042191,31]
[312432894,1705871477881,-500.0,0.00042191,31]
[312432895,1705871477890,-500.0,0.00042191,31]
[312432896,1705871477899,-500.0,0.00042191,31]
[312432897,1705871477908,-1000.0,0.00042191,2]
[312432898,1705871477917,-500.0,0.00042191,31]
[312432899,1705871477926,-1017.57,0.00042191,31]
[312432900,1705871477936,-500.0,0.00042191,31]
[312432901,1705871477945,-500.0,0.00042191,31]
[312432902,1705871477954,-500.0,0.00042191,31]
[312432903,1705871477963,-500.0,0.00042191,7]
[312432904,1705871477971,-500.0,0.00042191,31]
[312432905,1705871477980,-560.07,0.00042191,31]
[312432906,1705871477989,-500.0,0.00042191,31]
[312432907,1705871477998,-500.0,0.00042191,31]
[312432908,1705871478007,-733.87,0.00042191,31]
[312432909,1705871478016,-500.0,0.00042191,31]
[312432910,1705871478026,-500.0,0.00042191,31]
[312432911,1705871478035,-500.0,0.00042191,31]
[312432912,1705871478044,-500.0,0.00042191,31]
[312432913,1705871478054,-500.0,0.00042191,31]
[312432914,1705871478063,-500.0,0.00042191,31]
[312432915,1705871478074,-633.23776256,0.00042191,31]
[312432916,1705871478083,-500.0,0.00042191,31]
[312432917,1705871478093,-500.0,0.00042191,31]
[312432918,1705871478102,-545.46,0.00042191,31]
[312432919,1705871478112,-500.0,0.00042191,31]
[312432920,1705871478122,-500.0,0.00042191,31]
[312432921,1705871478131,-590.57,0.00042191,31]
[312432922,1705871478143,-500.0,0.00042191,31]
[312432923,1705871478152,-692.69,0.00042191,31]
[312432924,1705871478161,-500.47,0.00042191,31]
[312432925,1705871478170,-500.0,0.00042191,31]
[312432926,1705871478180,-500.0,0.00042191,31]
[312432927,1705871478189,-500.0,0.00042191,31]
[312432928,1705871478199,-667.53,0.00042191,31]
[312432929,1705871478207,-500.0,0.00042191,31]
[312432930,1705871478217,-500.0,0.00042191,31]
[312432931,1705871478226,-905.02,0.00042191,31]
[312432932,1705871478236,-500.0,0.00042191,31]
[312432933,1705871478245,-636.56,0.00042191,31]
[312432934,1705871478255,-500.0,0.00042191,31]
[312432935,1705871478264,-500.0,0.00042191,31]
[312432936,1705871478274,-987.01,0.00042191,31]
[312432937,1705871478283,-661.81,0.00042191,31]
[312432938,1705871478293,-500.0,0.00042191,31]
[312432939,1705871478303,-1499.78,0.00042191,31]
[312432940,1705871478313,-500.0,0.00042191,31]
[312432941,1705871478324,-500.0,0.00042191,31]
[312432942,1705871478334,-919.26,0.00042191,31]
[312432943,1705871478345,-500.0,0.00042191,31]
[312432944,1705871478355,-816.06,0.00042191,31]
[312432945,1705871478365,-1220.44,0.00042191,31]
[312432946,1705871478377,-786.4,0.00042191,31]
[312432947,1705871478387,-1030.27,0.00042191,31]
[312432948,1705871478398,-500.0,0.00042191,31]
[312432949,1705871478409,-1558.39,0.00042191,31]
[312432950,1705871478420,-500.0,0.00042191,31]
[312432951,1705871478429,-500.0,0.00042191,31]
[312432952,1705871478440,-500.0,0.00042191,31]
[312432953,1705871478450,-500.0,0.00042191,31]
[312432954,1705871478460,-500.0,0.00042191,31]
[312432955,1705871478470,-500.0,0.00042191,31]
[312432956,1705871478479,-1094.0,0.00042191,31]
[312432957,1705871478489,-500.0,0.00042191,31]
[312432958,1705871478498,-830.04,0.00042191,31]
[312432959,1705871478507,-522.13,0.00042191,31]
[312432960,1705871478516,-526.26,0.00042191,31]
[312432961,1705871478526,-500.0,0.00042191,5]
[312432962,1705871478536,-524.57,0.00042191,31]
[312432963,1705871478546,-500.0,0.00042191,31]
[312432964,1705871478729,-500.0,0.00042191,2]
[312432965,1705871478740,-578.73,0.00042191,31]
[312432966,1705871478749,-866.66,0.00042191,31]
[312432967,1705871478760,-500.0,0.00042191,31]
[312432968,1705871478769,-733.41,0.00042191,31]
[312432969,1705871478779,-799.65,0.00042191,31]
[312432970,1705871478788,-2091.99,0.00042191,31]
[312432971,1705871478798,-500.0,0.00042191,31]
[312432972,1705871478808,-799.23,0.00042191,31]
[312432973,1705871478817,-500.0,0.00042191,31]
[312432974,1705871478828,-500.0,0.00042191,31]
[312432975,1705871478838,-947.21,0.00042191,31]
[312432976,1705871478848,-533.09,0.00042191,31]
[312432977,1705871478858,-579.1,0.00042191,31]
[312432978,1705871478867,-500.0,0.00042191,31]
[312432979,1705871478876,-500.0,0.00042191,31]
[312432980,1705871478885,-500.0,0.00042191,31]
[312432981,1705871478894,-1073.15,0.00042191,31]
[312432982,1705871478903,-739.55,0.00042191,31]
[312432983,1705871478912,-500.0,0.00042191,31]
[312432984,1705871478921,-821.99,0.00042191,31]
[312432985,1705871478931,-664.9,0.00042191,31]
[312432986,1705871478940,-1269.81,0.00042191,31]
[312432987,1705871478950,-679.83,0.00042191,31]
[312432988,1705871478959,-500.0,0.00042191,31]
[312432989,1705871478969,-522.65,0.00042191,31]
[312432990,1705871478979,-539.43,0.00042191,31]
[312432991,1705871478988,-500.0,0.00042191,31]
[312432992,1705871478997,-607.47,0.00042191,31]
[312432993,1705871479006,-500.0,0.00042191,31]
[312432994,1705871479016,-500.0,0.00042191,31]
[312432995,1705871479026,-828.67,0.00042191,31]
[312432996,1705871479036,-1005.26,0.00042191,31]
[312432997,1705871479045,-523.3,0.00042191,2]
[312432998,1705871479055,-500.0,0.00042191,31]
[312432999,1705871479065,-837.79,0.00042191,31]
[312433000,1705871479075,-500.0,0.00042191,31]
[312433001,1705871479085,-1153.86,0.00042191,31]
[312433002,1705871479095,-500.0,0.00042191,31]
[312433003,1705871479104,-500.0,0.00042191,31]
[312433004,1705871479114,-500.0,0.00042191,31]
[312433005,1705871479124,-500.0,0.00042191,31]
[312433006,1705871479133,-500.0,0.00042191,31]
[312433007,1705871479143,-500.0,0.00042191,31]
[312433008,1705871479152,-500.0,0.00042191,31]
[312433009,1705871479162,-500.0,0.00042191,31]
[312433010,1705871479172,-500.0,0.00042191,31]
[312433011,1705871479181,-500.0,0.00042191,31]
[312433012,1705871479191,-500.0,0.00042191,31]
[312433013,1705871479201,-500.0,0.00042191,31]
[312433014,1705871479210,-500.0,0.00042191,31]
[312433015,1705871479219,-500.0,0.00042191,31]
[312433016,1705871479229,-500.0,0.00042191,31]
[312433017,1705871479238,-500.0,0.00042191,31]
[312433018,1705871479248,-586.19,0.00042191,31]
[312433019,1705871479257,-500.0,0.00042191,31]
[312433020,1705871479266,-500.0,0.00042191,31]
[312433021,1705871479276,-500.0,0.00042191,31]
[312433022,1705871479285,-804.79,0.00042191,31]
[312433023,1705871479297,-1144.01,0.00042191,31]
[312433024,1705871479306,-500.0,0.00042191,31]
[312433025,1705871479316,-500.0,0.00042191,31]
[312433026,1705871479325,-500.0,0.00042191,31]
[312433027,1705871479336,-500.0,0.00042191,31]
[312433028,1705871479345,-500.0,0.00042191,31]
[312433029,1705871479356,-500.0,0.00042191,31]
[312433030,1705871479367,-613.27,0.00042191,31]
[312433031,1705871479378,-500.0,0.00042191,31]
[312433032,1705871479388,-500.0,0.00042191,31]
[312433033,1705871479397,-500.0,0.00042191,31]
[312433034,1705871479406,-500.0,0.00042191,31]
[312433035,1705871479416,-500.0,0.00042191,31]
[312433036,1705871479426,-500.0,0.00042191,31]
[312433037,1705871479436,-500.0,0.00042191,31]
[312433038,1705871479446,-500.0,0.00042191,31]
[312433039,1705871479456,-526.84,0.00042191,31]
[312433040,1705871479466,-500.0,0.00042191,31]
[312433041,1705871479475,-500.0,0.00042191,20]
[312433042,1705871479485,-500.0,0.00042191,31]
[312433043,1705871479495,-500.0,0.00042191,31]
[312433044,1705871479504,-500.0,0.00042191,31]
[312433045,1705871479513,-282.6,0.00042191,31]
[312433046,1705871479522,-500.0,0.00042191,31]
[312433047,1705871479531,-500.0,0.00042191,31]
[312433048,1705871479540,-790.35,0.00042191,31]
[312433049,1705871479550,-500.0,0.00042191,31]
[312433050,1705871479559,-890.33,0.00042191,31]
[312433051,1705871479568,-1041.17,0.00042191,31]
[312433052,1705871479577,-493.54108435,0.00042191,31]
[312433053,1705871479586,-500.0,0.00042191,31]
[312433054,1705871479595,-500.0,0.00042191,31]
[312433055,1705871479604,-500.0,0.00042191,31]
[312433056,1705871479614,-500.0,0.00042191,31]
[312433057,1705871479623,-572.56,0.00042191,31]
[312433058,1705871479633,-569.03,0.00042191,31]
[312433059,1705871479642,-500.0,0.00042191,31]
[312433060,1705871479651,-564.02,0.00042191,31]
[312433061,1705871479661,-500.0,0.00042191,31]
[312433062,1705871479670,-3564.58,0.00042191,31]
[312433063,1705871479679,-763.79,0.00042191,31]
[312433064,1705871479689,-269.22327875,0.00042191,31]
[312433065,1705871479699,-6907.8,0.00042191,31]
[312433066,1705871479709,-500.0,0.00042191,31]
[312433067,1705871479720,-508.29,0.00042191,31]
[312433068,1705871479731,-500.0,0.00042191,31]
[312433069,1705871479741,-500.0,0.00042191,31]
[312433070,1705871479752,-500.0,0.00042191,31]
[312433071,1705871479762,-612.97,0.00042191,31]
[312433072,1705871479771,-500.0,0.00042191,31]
[312433073,1705871479780,-500.0,0.00042191,31]
[312433074,1705871479790,-2313.76,0.00042191,31]
[312433075,1705871479798,-500.0,0.00042191,31]
[312433076,1705871479808,-500.0,0.00042191,31]
[312433077,1705871479818,-500.0,0.00042191,31]
[312433078,1705871479827,-2365.7,0.00042191,31]
[312433079,1705871479837,-500.0,0.00042191,31]
[312433080,1705871479846,-598.51,0.00042191,31]
[312433081,1705871479855,-500.0,0.00042191,31]
[312433082,1705871479865,-7992.81,0.00042191,31]
[312433083,1705871479875,-500.0,0.00042191,31]
[312433084,1705871479884,-1000.0,0.00042191,2]
[312433085,1705871479893,-500.0,0.00042191,31]
[312433086,1705871479903,-735.6,0.00042191,31]
[312433087,1705871479912,-1019.15,0.00042191,31]
[312433088,1705871479921,-500.0,0.00042191,31]
[312433089,1705871479930,-500.0,0.00042191,31]
[312433090,1705871479940,-1824.29,0.00042191,31]
[312433091,1705871479950,-4121.58,0.00042191,31]
[312433092,1705871479959,-4729.82,0.00042191,31]
[312433093,1705871479969,-717.1,0.00042191,31]
[312433094,1705871479979,-500.0,0.00042191,31]
[312433095,1705871479988,-500.0,0.00042191,31]
[312433096,1705871479997,-500.0,0.00042191,31]
[312433097,1705871480007,-500.0,0.00042191,31]
[312433098,1705871480017,-514.47,0.00042191,31]
[312433099,1705871480027,-688.94,0.00042191,31]
[312433100,1705871480036,-551.32,0.00042191,31]
[312433101,1705871480045,-2388.05,0.00042191,31]
[312433102,1705871480055,-2072.56,0.00042191,31]
[312433103,1705871480065,-3229.22,0.00042191,31]
[312433104,1705871480074,-500.0,0.00042191,31]
[312433105,1705871480084,-500.0,0.00042191,31]
[312433106,1705871480093,-500.0,0.00042191,31]
[312433107,1705871480102,-500.0,0.00042191,31]
[312433108,1705871480112,-4451.68,0.00042191,31]
[312433109,1705871480122,-1373.64,0.00042191,31]
[312433110,1705871480133,-2025.04,0.00042191,31]
[312433111,1705871480143,-511.5,0.00042191,31]
[312433112,1705871480153,-500.0,0.00042191,31]
[312433113,1705871480163,-1021.34,0.00042191,31]
[312433114,1705871480173,-469.74,0.00042191,31]
[312433115,1705871480182,-500.0,0.00042191,31]
[312433116,1705871480192,-1176.05,0.00042191,31]
[312433117,1705871480202,-2369.33,0.00042191,31]
[312433118,1705871480212,-1213.58,0.00042191,31]
[312433119,1705871480222,-500.0,0.00042191,5]
[312433120,1705871480232,-500.0,0.00042191,31]
[312433121,1705871480242,-500.0,0.00042191,31]
[312433122,1705871480252,-500.0,0.00042191,31]
[312433123,1705871480262,-553.77,0.00042191,31]
[312433124,1705871480271,-2910.1,0.00042191,31]
[312433125,1705871480282,-1282.24,0.00042191,31]
[312433126,1705871480292,-500.0,0.00042191,31]
[312433127,1705871480302,-662.34,0.00042191,31]
[312433128,1705871480312,-500.0,0.00042191,31]
[312433129,1705871480322,-500.0,0.00042191,31]
[312433130,1705871480332,-500.0,0.00042191,31]
[312433131,1705871480342,-1059.85,0.00042191,31]
[312433132,1705871480353,-2421.46,0.00042191,31]
[312433133,1705871480365,-1056.67,0.00042191,31]
[312433134,1705871480375,-1638.07,0.00042191,31]
[312433135,1705871480385,-500.0,0.00042191,31]
[312433136,1705871480396,-500.0,0.00042191,31]
[312433137,1705871480406,-500.0,0.00042191,31]
[312433138,1705871480416,-500.0,0.00042191,31]
[312433139,1705871480425,-7775.6,0.00042191,31]
[312433140,1705871480435,-500.0,0.00042191,31]
[312433141,1705871480446,-3940.76,0.00042191,31]
[312433142,1705871480456,-500.0,0.00042191,31]
[312433143,1705871480466,-232.2999786,0.00042191,31]
[312433144,1705871480476,-576.77908761,0.00042191,31]
[312433145,1705871480486,-500.0,0.00042191,31]
[312433146,1705871480495,-500.0,0.00042191,31]
[312433147,1705871480505,-500.0,0.00042191,31]
[312433148,1705871480514,-1657.73,0.00042191,31]
[312433149,1705871480525,-10435.91,0.00042191,31]
[312433150,1705871480534,-633.78,0.00042191,31]
[312433151,1705871480544,-500.0,0.00042191,31]
[312433152,1705871480554,-500.0,0.00042191,31]
[312433153,1705871480564,-3681.15,0.00042191,31]
[312433154,1705871480574,-504.34,0.00042191,31]
[312433155,1705871480583,-536.17258622,0.00042191,31]
[312433156,1705871480593,-500.0,0.00042191,31]
[312433157,1705871480603,-500.0,0.00042191,31]
[312433158,1705871480613,-2074.24,0.00042191,31]
[312433159,1705871480623,-500.0,0.00042191,7]
[312433160,1705871480633,-1174.86,0.00042191,31]
[312433161,1705871480642,-500.0,0.00042191,31]
[312433162,1705871480653,-978.58,0.00042191,31]
[312433163,1705871480662,-500.0,0.00042191,31]
[312433164,1705871480671,-500.0,0.00042191,31]
[312433165,1705871480681,-837.56,0.00042191,31]
[312433166,1705871480691,-12257.55,0.00042191,31]
[312433167,1705871480701,-504.14,0.00042191,31]
[312433168,1705871480710,-500.0,0.00042191,31]
[312433169,1705871480720,-1233.83,0.00042191,31]
[312433170,1705871480730,-574.42,0.00042191,31]
[312433171,1705871480740,-2706.93,0.00042191,31]
[312433172,1705871480749,-500.0,0.00042191,31]
[312433173,1705871480759,-500.0,0.00042191,31]
[312433174,1705871480769,-706.21,0.00042191,31]
[312433175,1705871480778,-500.0,0.00042191,31]
[312433176,1705871480788,-753.98,0.00042191,31]
[312433177,1705871480798,-582.32,0.00042191,31]
[312433178,1705871480807,-500.0,0.00042191,31]
[312433179,1705871480817,-500.0,0.00042191,31]
[312433180,1705871480827,-500.0,0.00042191,31]
[312433181,1705871480837,-500.0,0.00042191,31]
[312433182,1705871480847,-500.0,0.00042191,31]
[312433183,1705871480857,-500.0,0.00042191,31]
[312433184,1705871480866,-1904.36,0.00042191,31]
[312433185,1705871480876,-500.0,0.00042191,31]
[312433186,1705871480886,-3057.49,0.00042191,31]
[312433187,1705871480896,-2361.99,0.00042191,31]
[312433188,1705871480906,-500.0,0.00042191,31]
[312433189,1705871480916,-1193.21,0.00042191,31]
[312433190,1705871480926,-500.0,0.00042191,31]
[312433191,1705871480936,-5228.61,0.00042191,31]
[312433192,1705871480947,-501.55,0.00042191,31]
[312433193,1705871481328,-500.0,0.00042191,31]
[312433194,1705871481347,-500.0,0.00042191,31]
[312433195,1705871481358,-673.47,0.00042191,31]
[312433196,1705871481371,-500.0,0.00042191,31]
[312433197,1705871481381,-500.0,0.00042191,31]
[312433198,1705871481391,-706.05,0.00042191,31]
[312433199,1705871481401,-2736.65,0.00042191,31]
[312433200,1705871481411,-1933.78,0.00042191,31]
[312433201,1705871481421,-574.77,0.00042191,31]
[312433202,1705871481430,-2095.74,0.00042191,31]
[312433203,1705871481441,-1129.43,0.00042191,31]
[312433204,1705871481451,-1030.15,0.00042191,31]
[312433205,1705871481461,-2123.7,0.00042191,31]
[312433206,1705871481471,-757.56,0.00042191,31]
[312433207,1705871481482,-631.43,0.00042191,31]
[312433208,1705871481491,-4409.24,0.00042191,31]
[312433209,1705871481500,-182.16776741,0.00042191,31]
[312433210,1705871481510,-500.0,0.00042191,31]
[312433211,1705871481520,-500.0,0.00042191,31]
[312433212,1705871481529,-258.13,0.00042191,31]
[312433213,1705871481540,-684.66,0.00042191,31]
[312433214,1705871481549,-611.16692997,0.00042191,31]
[312433215,1705871481559,-1624.83,0.00042191,31]
[312433216,1705871481569,-612.11,0.00042191,31]
[312433217,1705871481579,-2380.48,0.00042191,31]
[312433218,1705871481587,-500.0,0.00042191,31]
[312433219,1705871481598,-3071.97,0.00042191,31]
[312433220,1705871481608,-2546.42,0.00042191,31]
[312433221,1705871481617,-1285.05,0.00042191,31]
[312433222,1705871481627,-509.37,0.00042191,31]
[312433223,1705871481636,-2297.31,0.00042191,31]
[312433224,1705871481646,-500.0,0.00042191,31]
[312433225,1705871481655,-1012.66,0.00042191,31]
[312433226,1705871481665,-2124.24,0.00042191,31]
[312433227,1705871481675,-500.0,0.00042191,31]
[312433228,1705871481685,-802.71,0.00042191,31]
[312433229,1705871481695,-500.0,0.00042191,31]
[312433230,1705871481705,-500.0,0.00042191,31]
[312433231,1705871481715,-589.46,0.00042191,31]
[312433232,1705871481725,-3796.95,0.00042191,31]
[312433233,1705871481734,-672.07,0.00042191,31]
[312433234,1705871481744,-500.0,0.00042191,31]
[312433235,1705871481753,-1018.92,0.00042191,31]
[312433236,1705871481763,-890.78,0.00042191,31]
[312433237,1705871481773,-551.48,0.00042191,31]
[312433238,1705871481783,-500.0,0.00042191,31]
[312433239,1705871481795,-558.76,0.00042191,31]
[312433240,1705871481804,-1534.19,0.00042191,31]
[312433241,1705871481814,-2212.81,0.00042191,31]
[312433242,1705871481823,-4831.05,0.00042191,31]
[312433243,1705871481833,-9801.56,0.00042191,31]
[312433244,1705871481842,-12999.6,0.00042191,31]
[312433245,1705871481852,-370.03641035,0.00042191,31]
[312433246,1705871481861,-1513.82,0.00042191,31]
[312433247,1705871481871,-997.89,0.00042191,31]
[312433248,1705871481881,-742.61,0.00042191,31]
[312433249,1705871481890,-752.57214921,0.00042191,31]
[312433250,1705871482282,-354.80785079,0.00042191,31]
[312433251,1705871482292,-1969.05,0.00042191,31]
[312433252,1705871482302,-226.08704418,0.00042191,31]
[312433253,1705871482312,-500.0,0.00042191,31]
[312433254,1705871482322,-500.0,0.00042191,31]
[312433255,1705871482332,-2273.85,0.00042191,31]
[312433256,1705871482342,-2701.75,0.00042191,31]
[312433257,1705871482353,-500.0,0.00042191,31]
[312433258,1705871482364,-234.50458694,0.00042191,31]
[312433259,1705871482374,-500.0,0.00042191,31]
[312433260,1705871482383,-500.0,0.00042191,2]
[312433261,1705871482392,-562.19,0.00042191,31]
[312433262,1705871482403,-1914.09,0.00042191,31]
[312433263,1705871482413,-500.0,0.00042191,31]
[312433264,1705871482423,-500.0,0.00042191,31]
[312433265,1705871482433,-3339.48,0.00042191,31]
[312433266,1705871482446,-759.23,0.00042191,31]
[312433267,1705871482456,-1721.5,0.00042191,31]
[312433268,1705871482465,-500.0,0.00042191,31]
[312433269,1705871482475,-4012.63,0.00042191,31]
[312433270,1705871482484,-500.0,0.00042191,31]
[312433271,1705871482495,-1410.74,0.00042191,31]
[312433272,1705871482506,-500.0,0.00042191,31]
[312433273,1705871482516,-500.0,0.00042191,31]
[312433274,1705871482528,-6318.58,0.00042191,31]
[312433275,1705871482538,-1598.09,0.00042191,31]
[312433276,1705871482548,-796.67,0.00042191,31]
[312433277,1705871482559,-1018.04,0.00042191,31]
[312433278,1705871482569,-584.2,0.00042191,31]
[312433279,1705871482578,-571.75,0.00042191,31]
[312433280,1705871482588,-1398.35,0.00042191,31]
[312433281,1705871482597,-959.8,0.00042191,31]
[312433282,1705871482606,-4513.47,0.00042191,31]
[312433283,1705871482617,-500.0,0.00042191,31]
[312433284,1705871482626,-2490.25,0.00042191,31]
[312433285,1705871482636,-500.0,0.00042191,31]
[312433286,1705871482645,-590.71,0.00042191,31]
[312433287,1705871482657,-699.35,0.00042191,31]
[312433288,1705871482667,-4695.07,0.00042191,31]
[312433289,1705871482676,-500.0,0.00042191,31]
[312433290,1705871482686,-590.87,0.00042191,31]
[312433291,1705871482696,-662.71,0.00042191,31]
[312433292,1705871482706,-10157.54,0.00042191,31]
[312433293,1705871482715,-1371.42,0.00042191,31]
[312433294,1705871482725,-500.0,0.00042191,7]
[312433295,1705871482733,-500.0,0.00042191,31]
[312433296,1705871482742,-1632.83,0.00042191,31]
[312433297,1705871482751,-546.78,0.00042191,31]
[312433298,1705871482761,-1400.28,0.00042191,31]
[312433299,1705871482770,-1625.71,0.00042191,31]
[312433300,1705871482780,-1048.27,0.00042191,31]
[312433301,1705871482789,-500.0,0.00042191,31]
[312433302,1705871482798,-1132.07,0.00042191,31]
[312433303,1705871482807,-1146.41,0.00042191,31]
[312433304,1705871482816,-500.0,0.00042191,31]
[312433305,1705871482826,-2152.6,0.00042191,31]
[312433306,1705871482836,-500.0,0.00042191,31]
[312433307,1705871482844,-1788.55,0.00042191,31]
[312433308,1705871482854,-1000.0,0.00042191,31]
[312433309,1705871482863,-2308.11,0.00042191,31]
[312433310,1705871482872,-533.78,0.00042191,31]
[312433311,1705871482881,-642.57,0.00042191,31]
[312433312,1705871482891,-736.68,0.00042191,31]
[312433313,1705871482900,-1342.58,0.00042191,31]
[312433314,1705871482910,-2080.47,0.00042191,31]
[312433315,1705871482919,-827.35,0.00042191,31]
[312433316,1705871482928,-2881.28,0.00042191,31]
[312433317,1705871482938,-2270.31,0.00042191,31]
[312433318,1705871482948,-1168.81,0.00042191,31]
[312433319,1705871482957,-500.0,0.00042191,31]